[Event "13 Open de Quenza"]
[Site "Quenza, France"]
[Date "2024.07.07"]
[Round "5.8"]
[White "Lauron, Wesley"]
[Black "Glek, Igor"]
[Result "0-1"]
[TimeControl "5min+3s/move"]
[WhiteElo "1960"]
[BlackElo "2396"]

1. e4 {[%clk 00:05:03]} {[%emt 00:00:01]} c5 {[%clk 00:05:03]} {[%emt
00:00:01]} 2. Nc3 {[%clk 00:05:03]} a6 {[%clk 00:05:03]} {[%emt 00:00:03]} 3.
Nf3 {[%clk 00:05:03]} {[%emt 00:00:02]} e6 {[%clk 00:05:03]} {[%emt 00:00:01]}
4. d4 {[%clk 00:05:03]} cxd4 {[%clk 00:05:03]} {[%emt 00:00:02]} 5. Nxd4 {[%clk
00:05:03]} b5 {[%clk 00:05:03]} 6. Bd3 {[%clk 00:04:56]} {[%emt 00:00:10]} Bb7
{[%clk 00:05:03]} {[%emt 00:00:01]} 7. O-O {[%clk 00:04:56]} {[%emt 00:00:03]}
Nc6 {[%clk 00:05:03]} 8. Nce2 {[%clk 00:04:47]} {[%emt 00:00:13]} Qc7 {[%clk
00:04:33]} {[%emt 00:00:33]} 9. c3 {[%clk 00:04:40]} {[%emt 00:00:09]} Nf6
{[%clk 00:04:33]} {[%emt 00:00:02]} 10. Ng3 {[%clk 00:04:30]} {[%emt 00:00:12]}
h5 {[%clk 00:04:27]} {[%emt 00:00:10]} 11. Re1 {[%clk 00:04:00]} {[%emt
00:00:34]} h4 {[%clk 00:04:27]} {[%emt 00:00:02]} 12. Nf1 {[%clk 00:04:00]} h3
{[%clk 00:04:14]} {[%emt 00:00:15]} 13. g3 {[%clk 00:04:00]} {[%emt 00:00:02]}
Ne5 {[%clk 00:04:14]} {[%emt 00:00:02]} 14. Bf4 {[%clk 00:03:57]} {[%emt
00:00:06]} d6 {[%clk 00:04:14]} {[%emt 00:00:04]} 15. Bc2 {[%clk 00:03:52]}
{[%emt 00:00:08]} Be7 {[%clk 00:04:00]} {[%emt 00:00:16]} 16. f3 {[%clk
00:03:52]} {[%emt 00:00:02]} Nc4 {[%clk 00:03:39]} {[%emt 00:00:24]} 17. Bc1
{[%clk 00:03:39]} {[%emt 00:00:17]} d5 {[%clk 00:03:33]} {[%emt 00:00:09]} 18.
e5 {[%clk 00:01:53]} {[%emt 00:01:48]} Nxe5 {[%clk 00:03:02]} {[%emt 00:00:34]}
19. Bf4 {[%clk 00:01:53]} Nfd7 {[%clk 00:02:54]} {[%emt 00:00:10]} 20. Qe2
{[%clk 00:01:53]} {[%emt 00:00:03]} Bd6 {[%clk 00:01:37]} {[%emt 00:01:20]} 21.
Bxe5 {[%clk 00:01:47]} {[%emt 00:00:09]} Bxe5 {[%clk 00:01:30]} {[%emt
00:00:09]} 22. f4 {[%clk 00:01:47]} {[%emt 00:00:02]} Bxd4+ {[%clk 00:01:27]}
{[%emt 00:00:06]} 23. cxd4 {[%clk 00:01:47]} Qb6 {[%clk 00:01:20]} {[%emt
00:00:10]} 24. Qe3 {[%clk 00:01:41]} {[%emt 00:00:09]} Nf6 {[%clk 00:01:02]}
{[%emt 00:00:22]} 25. Nd2 {[%clk 00:01:41]} {[%emt 00:00:03]} Rc8 {[%clk
00:00:59]} {[%emt 00:00:06]} 26. Bd3 {[%clk 00:01:41]} {[%emt 00:00:03]} Ng4
{[%clk 00:00:55]} {[%emt 00:00:06]} 27. Qe2 {[%clk 00:01:34]} {[%emt 00:00:11]}
Qxd4+ {[%emt 00:00:01]} 28. Kf1 Nxh2+ {[%clk 00:00:51]} {[%emt 00:00:07]} 29.
Qxh2 {[%clk 00:01:34]} {[%emt 00:00:03]} Qxd3+ {[%clk 00:00:51]} 30. Kg1 {[%clk
00:01:34]} {[%emt 00:00:02]} Rc2 {[%clk 00:00:49]} {[%emt 00:00:05]} 31. Rad1
{[%clk 00:01:17]} {[%emt 00:00:21]} Kd8 {[%clk 00:00:38]} {[%emt 00:00:13]} 32.
f5 {[%clk 00:01:17]} {[%emt 00:00:03]} exf5 {[%clk 00:00:26]} {[%emt 00:00:15]}
33. Nf3 {[%clk 00:01:04]} {[%emt 00:00:15]} Qxd1 {[%clk 00:00:26]} {[%emt
00:00:02]} 34. Rxd1 {[%clk 00:01:04]} Rxh2 {[%clk 00:00:26]} {[%emt 00:00:01]}
35. Kxh2 {[%clk 00:01:04]} Ke7 {[%clk 00:00:26]} {[%emt 00:00:03]} 36. Nd4
{[%clk 00:00:46]} {[%emt 00:00:22]} Kf6 {[%clk 00:00:26]} {[%emt 00:00:02]} 37.
Rf1 {[%clk 00:00:46]} {[%emt 00:00:01]} g6 {[%clk 00:00:26]} 38. g4 {[%clk
00:00:46]} {[%emt 00:00:02]} Bc8 {[%clk 00:00:24]} {[%emt 00:00:05]} 39. gxf5
{[%clk 00:00:44]} {[%emt 00:00:05]} Bxf5 {[%clk 00:00:24]} {[%emt 00:00:01]} 40.
Rc1 {[%emt 00:00:10]} Ke5 {[%clk 00:00:24]} {[%emt 00:00:01]} 41. Nf3+ {[%clk
00:00:39]} {[%emt 00:00:02]} Kf4 {[%clk 00:00:24]} 42. Nd4 {[%clk 00:00:39]}
{[%emt 00:00:02]} Ke4 {[%clk 00:00:23]} {[%emt 00:00:04]} 43. Ne2 {[%clk
00:00:39]} {[%emt 00:00:02]} d4 {[%clk 00:00:23]} {[%emt 00:00:03]} 44. Ng3+
{[%clk 00:00:37]} {[%emt 00:00:05]} Kd5 {[%clk 00:00:23]} 45. Nxf5 {[%clk
00:00:37]} {[%emt 00:00:02]} gxf5 {[%emt 00:00:01]} 46. Rf1 Ke4 {[%clk
00:00:23]} {[%emt 00:00:02]} 47. Kg3 {[%clk 00:00:37]} {[%emt 00:00:04]} h2
{[%clk 00:00:23]} {[%emt 00:00:01]} 0-1

[Event "13 Open de Quenza"]
[Site "Quenza, France"]
[Date "2024.07.07"]
[Round "5.9"]
[White "Bigonnet, Jean-Michel"]
[Black "Yankelevich, Lev"]
[Result "0-1"]
[TimeControl "5min+3s/move"]
[WhiteElo "2100"]
[BlackElo "2416"]

1. d4 {[%clk 00:05:03]} Nf6 {[%clk 00:05:03]} {[%emt 00:00:02]} 2. Bg5 {[%clk
00:05:03]} d5 {[%clk 00:05:03]} {[%emt 00:00:03]} 3. e3 {[%clk 00:05:03]}
{[%emt 00:00:02]} c6 {[%clk 00:05:03]} {[%emt 00:00:04]} 4. Nd2 {[%emt
00:00:24]} Qb6 {[%emt 00:00:11]} 5. c4 {[%clk 00:04:11]} {[%emt 00:00:20]} Qxb2
{[%clk 00:04:50]} {[%emt 00:00:16]} 6. Rb1 {[%clk 00:04:01]} {[%emt 00:00:13]}
Qa3 {[%clk 00:04:43]} {[%emt 00:00:09]} 7. Bxf6 {[%clk 00:02:55]} {[%emt
00:01:10]} exf6 {[%clk 00:04:36]} {[%emt 00:00:10]} 8. cxd5 {[%clk 00:02:55]}
{[%emt 00:00:02]} cxd5 {[%clk 00:04:36]} {[%emt 00:00:02]} 9. Qf3 {[%clk
00:02:23]} {[%emt 00:00:34]} Bb4 {[%clk 00:04:35]} {[%emt 00:00:04]} 10. Bb5+
{[%clk 00:02:16]} {[%emt 00:00:10]} Nc6 {[%clk 00:04:31]} {[%emt 00:00:08]} 11.
Qxd5 {[%clk 00:02:01]} {[%emt 00:00:18]} Bxd2+ {[%clk 00:04:31]} {[%emt
00:00:02]} 12. Kxd2 {[%clk 00:02:01]} {[%emt 00:00:02]} O-O {[%clk 00:04:31]}
{[%emt 00:00:02]} 13. Bxc6 {[%clk 00:01:52]} {[%emt 00:00:12]} bxc6 {[%clk
00:04:24]} {[%emt 00:00:10]} 14. Qb3 {[%clk 00:01:48]} {[%emt 00:00:07]} Qa5+
{[%clk 00:04:24]} {[%emt 00:00:02]} 15. Kd1 {[%clk 00:00:57]} {[%emt 00:00:51]}
Bf5 {[%clk 00:04:24]} {[%emt 00:00:05]} 16. Rb2 {[%clk 00:00:56]} {[%emt
00:00:04]} c5 {[%clk 00:04:06]} {[%emt 00:00:21]} 17. Ne2 {[%clk 00:00:51]}
{[%emt 00:00:08]} c4 {[%clk 00:04:04]} {[%emt 00:00:05]} 18. Qc3 {[%clk
00:00:50]} {[%emt 00:00:03]} Qa4+ {[%clk 00:03:40]} {[%emt 00:00:27]} 19. Kd2
{[%clk 00:00:49]} {[%emt 00:00:04]} Rab8 {[%clk 00:03:40]} {[%emt 00:00:03]} 20.
f3 {[%clk 00:00:39]} {[%emt 00:00:12]} Bd3 {[%clk 00:03:29]} {[%emt 00:00:15]}
21. Nf4 {[%clk 00:00:35]} {[%emt 00:00:08]} Rxb2+ {[%clk 00:03:29]} {[%emt
00:00:01]} 22. Qxb2 {[%clk 00:00:35]} {[%emt 00:00:01]} Qa5+ 23. Kc1 {[%emt
00:00:04]} c3 {[%clk 00:03:15]} {[%emt 00:00:11]} 24. Qb3 {[%clk 00:00:35]}
{[%emt 00:00:02]} Bf5 {[%clk 00:02:57]} {[%emt 00:00:21]} 25. e4 {[%clk
00:00:34]} {[%emt 00:00:04]} Bd7 {[%clk 00:02:57]} 26. Nd3 {[%clk 00:00:17]}
{[%emt 00:00:20]} Qg5+ {[%clk 00:02:55]} {[%emt 00:00:06]} 27. Kb1 {[%emt
00:00:06]} Qxg2 {[%emt 00:00:03]} 28. Rc1 {[%clk 00:00:06]} {[%emt 00:00:04]}
Qxf3 {[%clk 00:02:48]} {[%emt 00:00:04]} 29. Qxc3 {[%clk 00:00:05]} {[%emt
00:00:11]} Qxe4 {[%clk 00:02:48]} {[%emt 00:00:03]} 30. Ka1 {[%clk 00:00:05]}
{[%emt 00:00:01]} Be6 {[%clk 00:02:34]} {[%emt 00:00:16]} 31. Nc5 {[%clk
00:00:05]} {[%emt 00:00:02]} Qd5 {[%clk 00:02:34]} {[%emt 00:00:01]} 32. Qa3
{[%clk 00:00:05]} {[%emt 00:00:03]} Qxd4+ {[%clk 00:02:33]} {[%emt 00:00:04]}
33. Rc3 {[%clk 00:00:04]} {[%emt 00:00:04]} h6 {[%clk 00:02:28]} {[%emt
00:00:08]} 34. Kb2 {[%clk 00:00:04]} {[%emt 00:00:01]} Rb8+ {[%clk 00:02:28]}
{[%emt 00:00:02]} 35. Nb3 {[%clk 00:00:04]} Qd2+ {[%clk 00:02:28]} {[%emt
00:00:04]} 36. Rc2 {[%clk 00:00:04]} {[%emt 00:00:01]} Qd4+ {[%clk 00:02:25]}
{[%emt 00:00:06]} 37. Kb1 {[%clk 00:00:04]} {[%emt 00:00:03]} Bf5 {[%clk
00:02:24]} {[%emt 00:00:04]} 38. Qxa7 {[%clk 00:00:00]} {[%emt 00:00:04]} 0-1

[Event "13 Open de Quenza"]
[Site "Quenza, France"]
[Date "2024.07.07"]
[Round "5.10"]
[White "Have, Didier"]
[Black "Mullon, Jean-Baptiste"]
[Result "0-1"]
[TimeControl "5min+3s/move"]
[WhiteElo "1935"]
[BlackElo "2315"]

1. e4 {[%clk 00:05:03]} c5 {[%clk 00:05:03]} {[%emt 00:00:01]} 2. Nf3 {[%clk
00:05:03]} {[%emt 00:00:02]} e6 {[%clk 00:05:03]} {[%emt 00:00:01]} 3. d3
{[%clk 00:05:03]} {[%emt 00:00:01]} Nc6 {[%clk 00:05:03]} {[%emt 00:00:02]} 4.
g3 {[%clk 00:05:03]} {[%emt 00:00:01]} Nf6 {[%clk 00:05:03]} {[%emt 00:00:03]}
5. Bg2 {[%clk 00:05:03]} {[%emt 00:00:02]} d5 {[%clk 00:05:03]} {[%emt
00:00:02]} 6. Nbd2 {[%clk 00:05:03]} {[%emt 00:00:03]} Be7 {[%clk 00:05:03]}
{[%emt 00:00:04]} 7. O-O {[%clk 00:05:03]} {[%emt 00:00:03]} Qc7 {[%clk
00:04:58]} {[%emt 00:00:09]} 8. Re1 {[%clk 00:05:03]} {[%emt 00:00:03]} O-O
{[%clk 00:04:57]} {[%emt 00:00:05]} 9. e5 {[%clk 00:05:01]} {[%emt 00:00:05]}
Nd7 {[%clk 00:04:57]} {[%emt 00:00:02]} 10. Qe2 {[%clk 00:05:01]} {[%emt
00:00:02]} b5 {[%clk 00:04:57]} {[%emt 00:00:01]} 11. Nf1 {[%clk 00:05:00]}
{[%emt 00:00:04]} Bb7 {[%clk 00:04:57]} {[%emt 00:00:02]} 12. h4 {[%clk
00:05:00]} {[%emt 00:00:03]} Rfc8 {[%clk 00:04:55]} {[%emt 00:00:04]} 13. Bf4
{[%clk 00:04:39]} {[%emt 00:00:24]} Qd8 {[%clk 00:04:34]} {[%emt 00:00:24]} 14.
N1h2 {[%clk 00:04:37]} {[%emt 00:00:05]} a5 {[%clk 00:04:31]} {[%emt 00:00:06]}
15. Ng4 {[%clk 00:04:37]} {[%emt 00:00:02]} Bf8 {[%clk 00:04:07]} {[%emt
00:00:28]} 16. Ng5 {[%clk 00:04:14]} {[%emt 00:00:25]} h6 {[%clk 00:04:06]}
{[%emt 00:00:05]} 17. Nh3 {[%clk 00:03:30]} {[%emt 00:00:47]} b4 {[%clk
00:04:04]} {[%emt 00:00:05]} 18. Qd2 {[%clk 00:03:10]} {[%emt 00:00:22]} Nd4
{[%clk 00:03:56]} {[%emt 00:00:11]} 19. c3 {[%clk 00:02:38]} {[%emt 00:00:36]}
bxc3 {[%clk 00:03:56]} {[%emt 00:00:02]} 20. bxc3 {[%clk 00:02:38]} {[%emt
00:00:01]} Nf5 {[%clk 00:03:56]} {[%emt 00:00:02]} 21. Ne3 {[%clk 00:02:30]}
{[%emt 00:00:10]} Nxe3 {[%emt 00:00:13]} 22. Qxe3 {[%clk 00:02:20]} {[%emt
00:00:04]} Rab8 {[%clk 00:03:56]} {[%emt 00:00:02]} 23. h5 {[%clk 00:01:50]}
{[%emt 00:00:32]} d4 {[%clk 00:03:42]} {[%emt 00:00:18]} 24. cxd4 {[%clk
00:01:44]} {[%emt 00:00:09]} cxd4 {[%clk 00:03:42]} {[%emt 00:00:02]} 25. Qd2
{[%clk 00:01:44]} {[%emt 00:00:03]} Bxg2 {[%clk 00:03:41]} {[%emt 00:00:03]} 26.
Kxg2 {[%clk 00:01:44]} {[%emt 00:00:01]} Nb6 {[%clk 00:03:36]} {[%emt
00:00:08]} 27. g4 {[%clk 00:01:41]} {[%emt 00:00:06]} Nd5 {[%clk 00:03:31]}
{[%emt 00:00:08]} 28. g5 {[%clk 00:01:34]} {[%emt 00:00:10]} Rc3 {[%clk
00:01:54]} {[%emt 00:01:41]} 29. gxh6 {[%clk 00:01:34]} {[%emt 00:00:03]} Qh4
{[%clk 00:01:49]} {[%emt 00:00:07]} 30. hxg7 {[%clk 00:01:23]} {[%emt
00:00:14]} Bxg7 {[%clk 00:01:49]} {[%emt 00:00:01]} 31. Re4 {[%clk 00:01:23]}
{[%emt 00:00:02]} Qxh5 {[%clk 00:01:21]} {[%emt 00:00:31]} 32. Bg3 {[%clk
00:01:16]} {[%emt 00:00:10]} Rbc8 {[%clk 00:01:20]} {[%emt 00:00:04]} 33. Rxd4
{[%clk 00:01:03]} {[%emt 00:00:16]} Rc2 {[%clk 00:01:18]} {[%emt 00:00:05]} 34.
Qxa5 {[%clk 00:01:00]} {[%emt 00:00:07]} Ne3+ {[%clk 00:01:17]} {[%emt
00:00:04]} 35. Kh2 {[%clk 00:00:48]} {[%emt 00:00:15]} Nf5 {[%clk 00:01:17]}
{[%emt 00:00:01]} 36. Rd8+ {[%clk 00:00:41]} {[%emt 00:00:10]} Rxd8 {[%clk
00:01:06]} {[%emt 00:00:14]} 37. Qxd8+ {[%clk 00:00:41]} {[%emt 00:00:01]} Kh7
{[%clk 00:01:06]} 38. Kg2 {[%clk 00:00:37]} {[%emt 00:00:08]} Nxg3 {[%clk
00:00:59]} {[%emt 00:00:10]} 39. Kxg3 {[%clk 00:00:23]} {[%emt 00:00:17]} Bxe5+
{[%clk 00:00:51]} {[%emt 00:00:12]} 40. f4 {[%clk 00:00:16]} {[%emt 00:00:10]}
Bxa1 {[%clk 00:00:21]} {[%emt 00:00:33]} 41. Ng5+ {[%clk 00:00:16]} {[%emt
00:00:02]} Kg6 {[%clk 00:00:21]} {[%emt 00:00:02]} 42. Qg8+ {[%clk 00:00:08]}
{[%emt 00:00:08]} Bg7 {[%clk 00:00:21]} {[%emt 00:00:03]} 43. Qxf7+ {[%clk
00:00:11]} {[%emt 00:00:02]} Kh6 {[%clk 00:00:21]} 44. Qxe6+ {[%clk 00:00:10]}
{[%emt 00:00:05]} Qg6 {[%clk 00:00:20]} {[%emt 00:00:05]} 45. Qh3+ {[%clk
00:00:07]} {[%emt 00:00:06]} Qh5 {[%clk 00:00:19]} {[%emt 00:00:03]} 46. Qe6+
{[%clk 00:00:07]} {[%emt 00:00:01]} Qg6 {[%clk 00:00:17]} {[%emt 00:00:05]} 47.
Qh3+ {[%clk 00:00:07]} {[%emt 00:00:02]} Qh5 {[%clk 00:00:17]} {[%emt
00:00:01]} 48. Qe6+ {[%clk 00:00:05]} {[%emt 00:00:05]} Qg6 {[%clk 00:00:17]}
{[%emt 00:00:02]} 49. Qh3+ 0-1

[Event "13 Open de Quenza"]
[Site "Quenza, France"]
[Date "2024.07.07"]
[Round "5.11"]
[White "Hejazipour, Mitra"]
[Black "Roubert, Emile"]
[Result "0-1"]
[TimeControl "5min+3s/move"]
[WhiteElo "2333"]
[BlackElo "1985"]

1. d4 {[%clk 00:05:03]} {[%emt 00:00:02]} d5 {[%clk 00:05:03]} 2. c4 {[%clk
00:05:03]} {[%emt 00:00:03]} e6 {[%clk 00:05:03]} 3. Nc3 {[%clk 00:05:03]}
{[%emt 00:00:01]} a6 {[%clk 00:05:03]} {[%emt 00:00:03]} 4. cxd5 {[%clk
00:05:03]} {[%emt 00:00:03]} exd5 {[%clk 00:05:03]} {[%emt 00:00:01]} 5. Nf3
{[%clk 00:05:00]} {[%emt 00:00:05]} c6 {[%clk 00:05:03]} {[%emt 00:00:01]} 6.
Bf4 {[%clk 00:04:54]} {[%emt 00:00:09]} Bd6 {[%clk 00:05:03]} {[%emt 00:00:01]}
7. e3 {[%clk 00:04:54]} {[%emt 00:00:03]} Ne7 {[%clk 00:05:03]} {[%emt
00:00:04]} 8. Bd3 {[%clk 00:04:54]} {[%emt 00:00:03]} Bxf4 {[%clk 00:04:36]}
{[%emt 00:00:30]} 9. exf4 {[%clk 00:04:54]} {[%emt 00:00:01]} Bf5 {[%clk
00:04:09]} {[%emt 00:00:30]} 10. O-O {[%clk 00:04:49]} {[%emt 00:00:09]} O-O
{[%clk 00:04:08]} {[%emt 00:00:03]} 11. Re1 {[%clk 00:04:40]} {[%emt 00:00:12]}
Bxd3 {[%clk 00:03:50]} {[%emt 00:00:22]} 12. Qxd3 {[%clk 00:04:40]} {[%emt
00:00:02]} Nd7 {[%clk 00:03:39]} {[%emt 00:00:13]} 13. Re2 {[%clk 00:04:38]}
{[%emt 00:00:05]} Nf6 {[%clk 00:03:30]} {[%emt 00:00:12]} 14. Rae1 {[%clk
00:04:37]} {[%emt 00:00:04]} Nc8 {[%clk 00:03:20]} {[%emt 00:00:13]} 15. Ne5
{[%clk 00:04:14]} {[%emt 00:00:26]} Nd6 {[%clk 00:03:17]} {[%emt 00:00:06]} 16.
Na4 {[%clk 00:04:00]} {[%emt 00:00:17]} Nfe4 {[%clk 00:03:01]} {[%emt
00:00:18]} 17. f3 {[%clk 00:03:54]} {[%emt 00:00:09]} Nf6 {[%clk 00:03:01]}
{[%emt 00:00:01]} 18. Nc5 {[%clk 00:03:54]} {[%emt 00:00:04]} Qa5 {[%clk
00:02:33]} {[%emt 00:00:31]} 19. a3 {[%clk 00:03:22]} {[%emt 00:00:36]} Qb5
{[%clk 00:02:33]} {[%emt 00:00:03]} 20. Qc2 {[%clk 00:03:06]} {[%emt 00:00:19]}
Rad8 {[%clk 00:02:15]} {[%emt 00:00:20]} 21. Re3 {[%clk 00:03:06]} {[%emt
00:00:03]} Qa5 {[%clk 00:01:54]} {[%emt 00:00:24]} 22. g4 {[%clk 00:02:02]}
{[%emt 00:01:06]} Qc7 {[%clk 00:01:44]} {[%emt 00:00:13]} 23. h4 {[%clk
00:01:58]} {[%emt 00:00:07]} Nb5 {[%clk 00:01:28]} {[%emt 00:00:19]} 24. Qd2
{[%clk 00:01:51]} {[%emt 00:00:10]} Nd6 {[%clk 00:01:26]} {[%emt 00:00:05]} 25.
h5 {[%clk 00:01:50]} {[%emt 00:00:04]} Nc4 {[%clk 00:01:16]} {[%emt 00:00:14]}
26. Nxc4 {[%clk 00:01:24]} {[%emt 00:00:29]} dxc4 {[%clk 00:01:16]} {[%emt
00:00:01]} 27. Re7 {[%clk 00:01:24]} {[%emt 00:00:03]} Qd6 {[%clk 00:01:11]}
{[%emt 00:00:08]} 28. Nxb7 {[%clk 00:01:17]} {[%emt 00:00:10]} Qxd4+ {[%clk
00:01:09]} {[%emt 00:00:05]} 29. Qxd4 {[%clk 00:01:17]} {[%emt 00:00:01]} Rxd4
{[%clk 00:01:09]} {[%emt 00:00:01]} 30. f5 {[%clk 00:01:07]} {[%emt 00:00:13]}
Nd5 {[%clk 00:01:09]} {[%emt 00:00:02]} 31. Rd7 {[%clk 00:00:53]} {[%emt
00:00:17]} Rd2 {[%clk 00:01:07]} {[%emt 00:00:04]} 32. Na5 {[%clk 00:00:53]}
Rxb2 {[%clk 00:00:58]} {[%emt 00:00:12]} 33. Nxc6 {[%clk 00:00:53]} {[%emt
00:00:03]} Nf6 {[%clk 00:00:53]} {[%emt 00:00:08]} 34. Rc7 {[%clk 00:00:45]}
{[%emt 00:00:11]} Rb3 {[%clk 00:00:53]} 35. Ne5 {[%clk 00:00:43]} {[%emt
00:00:05]} c3 {[%clk 00:00:49]} {[%emt 00:00:07]} 36. Rc1 {[%clk 00:00:38]}
{[%emt 00:00:08]} Nd5 {[%clk 00:00:49]} {[%emt 00:00:02]} 37. Rc5 {[%clk
00:00:38]} {[%emt 00:00:02]} Nf4 {[%clk 00:00:47]} {[%emt 00:00:05]} 38. Kh2
{[%clk 00:00:32]} {[%emt 00:00:09]} Rxa3 {[%clk 00:00:47]} {[%emt 00:00:02]} 39.
Kg3 {[%clk 00:00:32]} {[%emt 00:00:01]} Ne2+ {[%clk 00:00:47]} 40. Kf2 {[%clk
00:00:28]} {[%emt 00:00:06]} Nxc1 {[%clk 00:00:47]} {[%emt 00:00:02]} 0-1

[Event "13 Open de Quenza"]
[Site "Quenza, France"]
[Date "2024.07.07"]
[Round "5.12"]
[White "Tomasi, Albert"]
[Black "Krivenko, Dion"]
[Result "1-0"]
[TimeControl "5min+3s/move"]
[WhiteElo "2295"]
[BlackElo "2290"]

1. e4 {[%clk 00:05:02]} {[%emt 00:00:03]} c5 {[%clk 00:05:03]} {[%emt
00:00:01]} 2. Nf3 {[%clk 00:05:02]} {[%emt 00:00:03]} e6 {[%clk 00:05:03]}
{[%emt 00:00:01]} 3. d4 {[%clk 00:05:02]} {[%emt 00:00:03]} cxd4 {[%clk
00:05:03]} {[%emt 00:00:01]} 4. Nxd4 {[%clk 00:05:02]} {[%emt 00:00:02]} Nf6
{[%clk 00:05:03]} {[%emt 00:00:01]} 5. Nc3 {[%clk 00:05:02]} {[%emt 00:00:02]}
Nc6 {[%clk 00:05:03]} {[%emt 00:00:01]} 6. Ndb5 {[%clk 00:05:02]} {[%emt
00:00:03]} Bb4 {[%clk 00:05:01]} {[%emt 00:00:05]} 7. a3 {[%clk 00:04:56]}
{[%emt 00:00:09]} Bxc3+ {[%clk 00:05:01]} {[%emt 00:00:01]} 8. Nxc3 {[%clk
00:04:56]} {[%emt 00:00:02]} d5 {[%clk 00:05:01]} 9. Bd3 {[%clk 00:04:56]}
{[%emt 00:00:04]} dxe4 {[%clk 00:04:19]} {[%emt 00:00:46]} 10. Nxe4 {[%clk
00:04:56]} {[%emt 00:00:02]} Nxe4 {[%clk 00:04:19]} {[%emt 00:00:01]} 11. Bxe4
{[%clk 00:04:56]} {[%emt 00:00:02]} Qxd1+ {[%clk 00:04:19]} {[%emt 00:00:02]}
12. Kxd1 {[%clk 00:04:56]} {[%emt 00:00:02]} Bd7 {[%clk 00:04:19]} {[%emt
00:00:02]} 13. f4 {[%clk 00:04:11]} {[%emt 00:00:48]} O-O {[%clk 00:04:11]}
{[%emt 00:00:11]} 14. Ke2 {[%clk 00:04:09]} {[%emt 00:00:05]} Rfe8 {[%clk
00:04:11]} {[%emt 00:00:01]} 15. Kf2 {[%clk 00:03:21]} {[%emt 00:00:51]} f5
{[%clk 00:03:56]} {[%emt 00:00:18]} 16. Bd3 {[%clk 00:03:15]} {[%emt 00:00:08]}
e5 {[%clk 00:03:55]} {[%emt 00:00:05]} 17. Be3 {[%clk 00:02:41]} {[%emt
00:00:36]} e4 {[%clk 00:03:41]} {[%emt 00:00:18]} 18. Be2 {[%clk 00:02:41]}
{[%emt 00:00:02]} Be6 {[%clk 00:03:39]} {[%emt 00:00:05]} 19. h3 {[%clk
00:02:14]} {[%emt 00:00:29]} Red8 {[%clk 00:03:25]} {[%emt 00:00:18]} 20. Rad1
{[%clk 00:02:01]} {[%emt 00:00:16]} b6 {[%clk 00:03:17]} {[%emt 00:00:11]} 21.
g4 {[%clk 00:02:00]} {[%emt 00:00:04]} Ne7 {[%clk 00:03:17]} 22. c4 {[%clk
00:01:55]} {[%emt 00:00:08]} Rac8 {[%clk 00:03:02]} {[%emt 00:00:19]} 23. b3
{[%clk 00:01:55]} {[%emt 00:00:02]} Kf7 {[%clk 00:02:53]} {[%emt 00:00:12]} 24.
a4 {[%clk 00:01:51]} {[%emt 00:00:08]} Nc6 {[%clk 00:02:34]} {[%emt 00:00:22]}
25. Rhg1 {[%clk 00:01:20]} {[%emt 00:00:34]} g6 {[%clk 00:02:21]} {[%emt
00:00:16]} 26. gxf5 {[%clk 00:00:31]} {[%emt 00:00:52]} Bxf5 {[%clk 00:02:21]}
{[%emt 00:00:01]} 27. h4 {[%clk 00:00:31]} Nb4 {[%clk 00:02:06]} {[%emt
00:00:19]} 28. Bd4 {[%clk 00:00:16]} {[%emt 00:00:18]} Nd3+ {[%clk 00:01:13]}
{[%emt 00:00:56]} 29. Ke3 {[%clk 00:00:16]} {[%emt 00:00:01]} h5 {[%clk
00:00:51]} {[%emt 00:00:25]} 30. a5 {[%clk 00:00:06]} {[%emt 00:00:13]} bxa5
{[%clk 00:00:23]} {[%emt 00:00:31]} 31. Rd2 {[%clk 00:00:06]} {[%emt 00:00:03]}
a4 {[%clk 00:00:20]} {[%emt 00:00:07]} 32. bxa4 {[%clk 00:00:04]} {[%emt
00:00:05]} Rxc4 {[%clk 00:00:20]} {[%emt 00:00:01]} 33. Bxa7 {[%clk 00:00:04]}
Rxa4 {[%clk 00:00:20]} {[%emt 00:00:02]} 34. Bb6 {[%clk 00:00:04]} {[%emt
00:00:01]} Rb8 {[%clk 00:00:16]} {[%emt 00:00:07]} 35. Bc7 {[%clk 00:00:04]}
{[%emt 00:00:01]} Rb3 {[%clk 00:00:16]} {[%emt 00:00:01]} 36. Bxd3 {[%clk
00:00:04]} {[%emt 00:00:02]} exd3 {[%clk 00:00:16]} {[%emt 00:00:03]} 37. Be5
{[%clk 00:00:04]} {[%emt 00:00:01]} Re4+ {[%clk 00:00:16]} 38. Kf3 {[%clk
00:00:04]} {[%emt 00:00:01]} Rc4 {[%clk 00:00:11]} {[%emt 00:00:07]} 39. Ra1
{[%clk 00:00:04]} {[%emt 00:00:02]} Rb7 {[%clk 00:00:11]} {[%emt 00:00:01]} 40.
Ra6 {[%clk 00:00:04]} {[%emt 00:00:03]} Rc2 {[%clk 00:00:07]} {[%emt 00:00:07]}
41. Ke3 {[%clk 00:00:04]} Rb1 {[%clk 00:00:07]} {[%emt 00:00:02]} 42. Ra7+
{[%clk 00:00:04]} {[%emt 00:00:02]} Ke6 {[%clk 00:00:07]} 43. Ra6+ {[%clk
00:00:04]} {[%emt 00:00:02]} Kd5 {[%clk 00:00:07]} {[%emt 00:00:02]} 44. Rd6+
{[%clk 00:00:04]} {[%emt 00:00:01]} Kc5 {[%clk 00:00:07]} {[%emt 00:00:03]} 45.
R2xd3 {[%clk 00:00:04]} {[%emt 00:00:02]} Bxd3 {[%clk 00:00:07]} {[%emt
00:00:01]} 46. Rxd3 {[%clk 00:00:04]} {[%emt 00:00:01]} Re1+ {[%clk 00:00:07]}
{[%emt 00:00:01]} 47. Kf3 {[%clk 00:00:04]} {[%emt 00:00:01]} Rf1+ {[%clk
00:00:07]} {[%emt 00:00:01]} 48. Kg3 {[%clk 00:00:04]} {[%emt 00:00:01]} Rg1+
{[%clk 00:00:07]} 49. Kf3 {[%clk 00:00:04]} Rg4 {[%clk 00:00:06]} {[%emt
00:00:04]} 50. Bf6 {[%clk 00:00:04]} {[%emt 00:00:02]} Rcg2 {[%clk 00:00:05]}
{[%emt 00:00:04]} 51. Ke4 {[%clk 00:00:04]} {[%emt 00:00:02]} Re2+ {[%clk
00:00:05]} {[%emt 00:00:02]} 52. Kf3 {[%clk 00:00:04]} {[%emt 00:00:01]} Reg2
{[%clk 00:00:05]} {[%emt 00:00:01]} 53. Ke4 {[%clk 00:00:04]} R2g3 {[%clk
00:00:05]} {[%emt 00:00:01]} 54. Rd5+ {[%clk 00:00:04]} {[%emt 00:00:02]} Kc6
{[%clk 00:00:05]} 55. Bg5 {[%clk 00:00:04]} {[%emt 00:00:02]} Rg1 {[%clk
00:00:05]} {[%emt 00:00:01]} 1-0